bitfinex-derivatives/quotes_SOLF0:USTF0_20250905
["timestamp","ask_amount","ask_price","bid_price","bid_amount"]
[1757031231256,1.71605291,202.74,202.68,0.0342581]
[1757031231461,7.52,202.73,202.68,0.0342581]
[1757031231657,7.52,202.73,202.67,1.71605291]
[1757031231854,1.71605291,202.74,202.68,0.0341514]
[1757031232250,7.52,202.73,202.68,0.0341514]
[1757031232657,1.71605291,202.74,202.68,0.0341514]
[1757031232860,7.52,202.73,202.68,0.0341514]
[1757031233058,1.71605291,202.74,202.68,0.0341514]
[1757031233256,7.52,202.73,202.68,0.0341514]
[1757031233455,7.52,202.76,202.7,0.41]
[1757031233655,7.52,202.76,202.7,2.12605291]
[1757031234161,7.52,202.77,202.71,0.44607593]
[1757031235457,7.52,202.78,202.71,0.03607593]
[1757031235657,12.92689096,202.78,202.71,0.03607593]
[1757031236661,7.52,202.78,202.71,0.03607593]
[1757031238568,7.52,202.78,202.71,3.12285259]
[1757031240760,7.52,202.81,202.74,2.67677666]
[1757031240954,7.52,202.81,202.74,3.08677666]
[1757031241355,7.52,202.81,202.75,0.03179346]
[1757031245664,10.19677666,202.81,202.75,0.03179346]
[1757031246757,7.52,202.81,202.75,0.03179346]
[1757031249361,7.52,202.81,202.77,2.67677666]
[1757031249558,7.52,202.85,202.77,2.67677666]
[1757031250166,7.52,202.85,202.79,0.03263945]
[1757031255271,7.52,202.85,202.79,2.70941611]
[1757031255567,7.52,202.85,202.79,0.03263945]
[1757031269575,12.97185143,202.85,202.79,0.03263945]
[1757031270167,2.67677666,202.83,202.79,0.03263945]
[1757031270370,2.67677666,202.83,202.73,0.41]
[1757031270371,8.15,202.82,202.72,2.67677666]
[1757031270575,8.15,202.82,202.7,3.08677666]
[1757031271875,8.15,202.77,202.7,3.08677666]
[1757031275174,0.03173668,202.78,202.71,0.44]
[1757031275376,8.15,202.77,202.71,0.44]
[1757031279175,8.15,202.77,202.74,0.44]
[1757031281073,0.03173668,202.78,202.74,0.44]
[1757031281378,0.03173668,202.78,202.73,2.67677666]
[1757031281777,0.03173668,202.78,202.74,0.44]
[1757031281980,0.03173668,202.78,202.73,2.67677666]
[1757031282277,0.03173668,202.78,202.74,0.44]
[1757031282681,0.03173668,202.78,202.73,2.67677666]
[1757031282883,0.03173668,202.78,202.76,3.11677666]
[1757031283078,0.03173668,202.78,202.77,0.44]
[1757031287786,0.03173668,202.78,202.77,0.94]
[1757031288881,0.03173668,202.78,202.74,0.47]
[1757031289083,0.03173668,202.78,202.72,2.67677666]
[1757031289281,0.03173668,202.78,202.73,0.47]
[1757031289282,7.96173668,202.78,202.73,0.47]
[1757031289490,7.96173668,202.78,202.72,0.47]
[1757031290088,7.96173668,202.78,202.75,0.47]
[1757031290588,7.96173668,202.78,202.69,0.47]
[1757031290784,7.96173668,202.78,202.71,2.67677666]
[1757031291884,7.93,202.77,202.74,2.67677666]
[1757031292189,0.03173668,202.78,202.74,2.67677666]
[1757031292685,7.93,202.77,202.74,2.67677666]
[1757031292881,0.03173668,202.78,202.74,2.67677666]
[1757031293188,7.93,202.77,202.74,2.67677666]
[1757031293388,0.03173668,202.78,202.74,2.67677666]
[1757031293788,7.93,202.77,202.74,2.67677666]
[1757031294187,0.03173668,202.78,202.74,2.67677666]
[1757031294585,7.93,202.77,202.74,2.67677666]
[1757031294986,0.03173668,202.78,202.74,2.67677666]
[1757031295186,7.93,202.77,202.74,2.67677666]
[1757031295389,0.03173668,202.78,202.74,2.67677666]
[1757031295689,0.03173668,202.78,202.69,0.47]
[1757031295690,7.93,202.77,202.72,2.67677666]
[1757031295884,0.03173668,202.78,202.72,2.67677666]
[1757031296290,7.93,202.77,202.72,2.67677666]
[1757031296491,0.03173668,202.78,202.72,2.67677666]
[1757031296691,7.93,202.77,202.72,2.67677666]
[1757031297192,0.03173668,202.78,202.72,2.67677666]
[1757031297586,0.03173668,202.78,202.75,1.71284276]
[1757031297794,7.93,202.77,202.75,1.71284276]
[1757031298184,0.03173668,202.78,202.75,1.71284276]
[1757031298792,7.93,202.77,202.75,1.71284276]
[1757031299688,0.03173668,202.78,202.75,1.71284276]
[1757031299890,0.03173668,202.78,202.74,1.71284276]
[1757031300084,0.03173668,202.78,202.74,2.18284276]
[1757031300285,0.03173668,202.78,202.74,1.71284276]
[1757031300887,7.93,202.77,202.71,0.47]
[1757031301093,7.93,202.77,202.74,1.71284276]
[1757031301288,0.03173668,202.78,202.74,1.71284276]
[1757031302193,7.93,202.77,202.75,1.71284276]
[1757031302395,0.03173668,202.78,202.75,1.71284276]
[1757031302897,7.93,202.77,202.72,0.03248473]
[1757031303094,7.93,202.77,202.73,1.71284276]
[1757031303500,7.93,202.77,202.72,0.03248473]
[1757031304097,0.03173668,202.78,202.73,1.71284276]
[1757031304299,7.93,202.77,202.73,1.71284276]
[1757031304599,0.03173668,202.78,202.73,1.71284276]
[1757031305196,7.93,202.77,202.73,1.71284276]
[1757031305401,0.03173668,202.78,202.73,1.71284276]
[1757031305599,7.93,202.77,202.73,1.71284276]
[1757031305799,0.03173668,202.78,202.73,1.71284276]
[1757031306108,7.93,202.77,202.75,1.71284276]
[1757031306501,0.03173668,202.78,202.75,2.18284276]
[1757031306703,0.03173668,202.78,202.76,0.47]
[1757031307499,0.03173668,202.78,202.73,0.47]
[1757031307807,0.03173668,202.78,202.76,2.18284276]
[1757031309510,0.03173668,202.78,202.72,0.03248473]
[1757031309511,7.96173668,202.78,202.75,1.71284276]
[1757031309712,7.93,202.77,202.73,1.71284276]
[1757031310008,0.03173668,202.78,202.73,1.71284276]
[1757031311211,7.93,202.77,202.73,1.71284276]
[1757031311406,0.03173668,202.78,202.73,1.71284276]
[1757031311912,7.93,202.77,202.73,1.71284276]
[1757031312112,0.03173668,202.78,202.73,1.71284276]
[1757031312308,7.93,202.77,202.73,1.71284276]
[1757031312912,0.03173668,202.78,202.73,1.71284276]
[1757031313113,7.93,202.77,202.73,1.71284276]
[1757031313313,7.93,202.77,202.73,2.18284276]
[1757031313815,7.93,202.77,202.74,0.47]
[1757031314814,0.03173668,202.78,202.74,0.47]
[1757031315015,7.93,202.77,202.74,0.47]
[1757031315514,7.93,202.77,202.73,1.71284276]
[1757031316116,0.03173668,202.78,202.72,0.03248473]
[1757031316614,7.93,202.77,202.72,0.03248473]
[1757031316805,0.03173668,202.78,202.72,0.03248473]
[1757031317313,7.93,202.77,202.72,0.03248473]
[1757031317511,0.03173668,202.78,202.72,0.03248473]
[1757031317813,8.07,202.74,202.72,0.03248473]
[1757031318009,8.07,202.72,202.65,2.16284276]
[1757031319018,1.71284276,202.71,202.65,2.16284276]
[1757031319218,0.03652492,202.71,202.65,2.16284276]
[1757031321010,0.03652492,202.71,202.67,1.71284276]
[1757031321217,0.03652492,202.71,202.7,0.48]
[1757031323423,0.03652492,202.71,202.7,0.98]
[1757031323620,8.07,202.78,202.7,0.98]
[1757031323820,8.07,202.8,202.74,1.71284276]
[1757031325025,8.07,202.8,202.67,44.88]
[1757031325026,5.46869586,202.82,202.67,49.3201]
[1757031325221,5.46869586,202.85,202.79,0.48]
[1757031325425,5.46869586,202.87,202.74,0.48]
[1757031325620,8.07,202.8,202.74,2.19284276]
[1757031325822,8.07,202.8,202.74,1.71284276]
[1757031326124,8.07,202.76,202.69,1.71284276]
[1757031326719,8.07,202.74,202.69,1.71284276]
[1757031326926,1.71284276,202.75,202.69,1.71284276]
[1757031327328,8.07,202.74,202.69,1.71284276]
[1757031327529,1.71284276,202.75,202.69,1.71284276]
[1757031328228,8.07,202.74,202.69,1.71284276]
[1757031328424,1.71284276,202.75,202.69,1.71284276]
[1757031328628,8.07,202.74,202.69,1.71284276]
[1757031328829,1.71284276,202.75,202.69,1.71284276]
[1757031329130,8.07,202.74,202.68,1.71284276]
[1757031330426,8.07,202.77,202.66,1.71284276]
[1757031330630,8.07,202.72,202.66,1.71284276]
[1757031332136,8.07,202.72,202.65,0.48]
[1757031332330,0.03333287,202.71,202.67,0.03277285]
[1757031332524,1.74617563,202.71,202.67,0.03277285]
[1757031332734,8.07,202.68,202.6,1.71284276]
[1757031333029,8.07,202.68,202.64,1.71284276]
[1757031333235,8.07,202.68,202.64,2.22284276]
[1757031333623,1.71284276,202.73,202.66,1.71284276]
[1757031333836,8.07,202.72,202.66,1.71284276]
[1757031334029,8.10376351,202.72,202.66,1.71284276]
[1757031335035,8.10376351,202.72,202.68,2.22284276]
[1757031335236,8.10376351,202.72,202.68,1.71284276]
[1757031335434,8.07,202.72,202.69,0.51]
[1757031335631,8.10380911,202.72,202.69,0.51]
[1757031336033,0.03380911,202.72,202.7,1.71284276]
[1757031337033,8.10380911,202.72,202.7,1.71284276]
[1757031337236,0.03380911,202.72,202.7,2.22284276]
[1757031338029,0.03380911,202.72,202.6,4.15072635]
[1757031338030,8.10380911,202.72,202.69,1.71284276]
[1757031338827,0.03380911,202.72,202.68,1.71284276]
[1757031339239,8.07,202.72,202.63,0.51]
[1757031339433,8.10249483,202.72,202.65,1.71284276]
[1757031339638,8.10249483,202.72,202.63,0.51]
[1757031339837,8.10249483,202.72,202.65,1.71284276]
[1757031340838,8.07,202.7,202.65,1.71284276]
[1757031341141,1.71284276,202.71,202.65,1.71284276]
[1757031341343,1.71284276,202.69,202.63,1.71284276]
[1757031341842,8.07,202.68,202.63,1.71284276]
[1757031342232,1.71284276,202.69,202.63,1.71284276]
[1757031342432,0.03775879,202.68,202.63,1.71284276]
[1757031343038,8.07,202.67,202.61,1.71284276]
[1757031348841,9.78284276,202.67,202.59,0.51]
[1757031349046,9.78284276,202.67,202.6,1.71284276]
[1757031349547,0.03433789,202.66,202.6,1.71284276]
[1757031349942,7.98,202.65,202.6,1.71284276]
[1757031350343,0.03433789,202.66,202.6,1.71284276]
[1757031351549,7.98,202.65,202.57,0.49]
[1757031351749,7.98,202.65,202.59,1.71284276]
[1757031353253,1.71284276,202.63,202.56,1.71284276]
[1757031353450,7.98,202.62,202.56,1.71284276]
[1757031353856,7.98,202.6,202.56,2.20284276]
[1757031355248,0.03617709,202.61,202.56,2.20284276]
[1757031355552,7.98,202.6,202.56,2.20284276]
[1757031356952,7.98,202.6,202.57,0.49]
[1757031357249,7.98,202.6,202.58,1.71284276]
[1757031357553,0.03617709,202.61,202.59,0.49]
[1757031357754,0.03617709,202.61,202.6,1.71284276]
[1757031358148,7.98,202.6,202.59,1.71284276]
[1757031358353,0.03617709,202.61,202.57,2.20284276]
[1757031358548,0.03617709,202.61,202.58,0.49]
[1757031359152,0.03617709,202.61,202.59,1.71284276]
[1757031359552,0.03617709,202.61,202.57,2.68013716]
[1757031359753,0.03617709,202.61,202.58,0.49]
[1757031360555,0.03617709,202.61,202.57,2.68013716]
[1757031360857,0.03617709,202.61,202.6,3.17013716]
[1757031361252,0.03617709,202.61,202.6,0.49]
[1757031361561,0.03617709,202.61,202.6,3.17013716]
[1757031361960,7.98,202.7,202.61,0.49]
[1757031362162,7.98,202.7,202.64,0.49]
[1757031366157,2.68013716,202.77,202.66,2.68013716]
[1757031366355,7.98,202.76,202.66,3.17013716]
[1757031368055,7.98,202.76,202.61,0.49]
[1757031368263,7.98,202.73,202.63,2.68013716]
[1757031368457,7.98,202.73,202.63,3.17013716]
[1757031368661,7.98,202.73,202.66,2.68013716]
[1757031371064,7.98,202.73,202.67,0.49]
[1757031372262,7.98,202.73,202.6,2.68013716]
[1757031372564,7.98,202.73,202.64,2.68013716]
[1757031372966,7.98,202.73,202.63,3.17013716]
[1757031373659,7.98,202.73,202.67,0.49]
[1757031374060,7.98,202.76,202.64,62.34013716]
[1757031374761,2.68013716,202.77,202.64,62.34013716]
[1757031374961,7.98,202.76,202.64,62.34013716]
[1757031375363,7.98,202.76,202.65,0.49]
[1757031375562,7.98,202.76,202.68,0.49]
[1757031377362,7.98,202.76,202.67,2.68013716]
[1757031380062,2.68013716,202.75,202.64,2.68013716]
[1757031380274,8.2,202.74,202.64,2.68013716]
[1757031381567,8.2,202.74,202.64,3.20013716]
[1757031381769,8.2,202.74,202.64,0.52]
[1757031381968,8.2,202.74,202.64,3.20013716]
[1757031382963,2.68013716,202.73,202.56,4.15072635]
[1757031383163,8.2,202.72,202.59,2.68013716]
[1757031383471,8.2,202.72,202.59,3.20013716]
[1757031384268,8.2,202.7,202.59,3.20013716]
[1757031385660,8.2,202.7,202.62,2.68013716]
[1757031385960,8.2,202.7,202.63,0.52]
[1757031387566,8.2,202.7,202.62,2.68013716]
[1757031388167,8.2,202.7,202.59,3.20013716]
[1757031390561,8.2,202.67,202.59,2.68013716]
[1757031391463,8.2,202.67,202.6,0.52]
[1757031392472,8.2,202.73,202.63,0.52]
[1757031393668,8.2,202.73,202.62,2.68013716]
[1757031393871,8.2,202.73,202.6,3.20013716]
[1757031397477,8.2,202.73,202.61,0.52]
[1757031398577,10.88013716,202.73,202.61,0.52]
[1757031398781,10.88013716,202.73,202.64,0.52]
[1757031398782,8.2,202.73,202.64,0.52]
[1757031398979,8.2,202.73,202.64,3.20013716]
[1757031407291,8.2,202.73,202.67,2.68013716]
[1757031407486,8.2,202.73,202.67,3.20013716]
[1757031418392,8.2,202.73,202.7,3.18013716]
[1757031418597,8.2,202.73,202.71,0.5]
[1757031418792,0.03528586,202.72,202.71,0.5]
[1757031419199,5.46869586,202.82,202.71,3.18013716]
[1757031419200,8.13,202.81,202.71,3.18013716]
[1757031419500,8.16214219,202.74,202.71,3.18013716]
[1757031419800,8.13,202.74,202.71,3.18013716]
[1757031420099,8.13,202.81,202.7,2.68013716]
[1757031420895,8.13,202.81,202.68,27.84]
[1757031421096,8.13,202.81,202.71,2.68013716]
[1757031421504,8.13,202.81,202.75,1.71254043]
[1757031421798,9.84254043,202.81,202.75,1.71254043]
[1757031422000,9.84254043,202.81,202.74,1.71254043]
[1757031423502,9.84254043,202.81,202.76,1.71254043]
[1757031423503,8.13,202.81,202.76,1.71254043]
[1757031424995,1.71254043,202.83,202.76,1.71254043]
[1757031425200,8.13,202.82,202.76,1.71254043]
[1757031426901,1.71254043,202.85,202.78,1.71254043]
[1757031427103,8.13,202.84,202.78,1.71254043]
[1757031431505,1.71254043,202.86,202.8,1.71254043]
[1757031431699,1.71254043,202.87,202.8,1.71254043]
[1757031431896,8.13,202.86,202.8,1.71254043]
[1757031432806,8.13,202.86,202.7,8.58165237]
[1757031432807,8.13,202.86,202.7,4.14215237]
[1757031433002,8.13,202.82,202.71,0.5]
[1757031433305,8.13,202.82,202.75,1.71254043]
[1757031433494,1.71254043,202.83,202.71,0.5]
[1757031433696,8.13,202.8,202.74,1.71254043]
[1757031437904,0.03374224,202.79,202.74,1.71254043]
[1757031438307,0.03374224,202.79,202.76,1.71254043]
[1757031438510,7.52,202.78,202.76,1.71254043]
[1757031439209,0.03374224,202.79,202.76,1.71254043]
[1757031439414,7.52,202.78,202.75,1.74687425]
[1757031439712,0.03374224,202.79,202.75,1.74687425]
[1757031440013,7.52,202.78,202.75,1.74687425]
[1757031442316,0.03374224,202.79,202.75,1.74687425]
[1757031442614,7.52,202.78,202.75,1.74687425]
[1757031443415,0.03374224,202.79,202.75,1.74687425]
[1757031443610,7.52,202.78,202.75,1.74687425]
[1757031444116,0.03374224,202.79,202.75,1.74687425]
[1757031444314,0.03374224,202.79,202.75,0.03433382]
[1757031444613,7.52,202.78,202.75,0.03433382]
[1757031445010,0.03374224,202.79,202.75,0.03433382]
[1757031445411,7.52,202.78,202.75,0.03433382]
[1757031445911,0.03374224,202.79,202.75,0.03433382]
[1757031446610,7.52,202.78,202.75,0.03433382]
[1757031447114,0.03374224,202.79,202.75,0.03433382]
[1757031447306,7.52,202.78,202.75,0.03433382]
[1757031447711,0.03374224,202.79,202.75,0.03433382]
[1757031447911,7.52,202.78,202.75,0.03433382]
[1757031448715,0.03374224,202.79,202.75,0.03433382]
[1757031449415,7.52,202.78,202.75,0.03433382]
[1757031449916,0.03374224,202.79,202.75,0.03433382]
[1757031450119,7.52,202.78,202.75,0.03433382]
[1757031451117,0.03374224,202.79,202.75,0.03433382]
[1757031451508,7.52,202.78,202.75,0.03433382]
[1757031451715,0.03374224,202.79,202.75,0.03433382]
[1757031452511,7.52,202.78,202.75,0.03433382]
[1757031452712,0.03374224,202.79,202.75,0.03433382]
[1757031453514,7.52,202.78,202.75,0.03433382]
[1757031453712,0.03374224,202.79,202.75,0.03433382]
[1757031453914,7.52,202.78,202.75,0.03433382]
[1757031454119,0.03374224,202.79,202.75,0.03433382]
[1757031454323,7.52,202.78,202.75,0.03433382]
[1757031454716,0.03374224,202.79,202.75,0.03433382]
[1757031454917,7.52,202.78,202.75,0.03433382]
[1757031455421,0.03374224,202.79,202.75,0.03433382]
[1757031455617,7.52,202.78,202.75,0.03433382]
[1757031455916,0.03374224,202.79,202.77,0.52]
[1757031456222,0.03374224,202.79,202.78,1.71254043]
[1757031456615,7.55374224,202.79,202.78,1.71254043]
[1757031458722,7.52,202.78,202.77,1.71254043]
[1757031460619,7.52,202.78,202.75,1.74687425]
[1757031460818,0.03374224,202.79,202.75,1.74687425]
[1757031461520,7.52,202.78,202.75,1.74687425]
[1757031462920,0.03374224,202.79,202.75,1.74687425]
[1757031463423,7.52,202.78,202.75,1.74687425]
[1757031463818,0.03374224,202.79,202.75,1.74687425]
[1757031464024,7.52,202.78,202.75,1.74687425]
[1757031464215,0.03374224,202.79,202.75,1.74687425]
[1757031464421,7.52,202.78,202.75,1.74687425]
[1757031464623,0.03374224,202.79,202.75,1.74687425]
[1757031464923,7.52,202.78,202.75,1.74687425]
[1757031465923,7.52,202.78,202.75,0.03433382]
[1757031466122,7.52,202.78,202.75,1.74687425]
[1757031466316,0.03374224,202.79,202.75,1.74687425]
[1757031466521,7.52,202.78,202.75,1.74687425]
[1757031466717,0.03374224,202.79,202.75,1.74687425]
[1757031467620,7.52,202.78,202.75,1.74687425]
[1757031467824,7.84,202.78,202.75,0.03433382]
[1757031468115,0.03374224,202.79,202.67,4.13940631]
[1757031468116,7.84,202.76,202.67,4.13940631]
[1757031468315,7.84,202.76,202.7,1.71254043]
[1757031469417,0.03355628,202.75,202.7,1.71254043]
[1757031469823,7.84,202.74,202.7,1.71254043]
[1757031470526,0.03355628,202.75,202.7,1.71254043]
[1757031470923,7.84,202.74,202.7,1.71254043]
[1757031471226,7.84,202.74,202.7,2.27254043]
[1757031471827,0.03355628,202.75,202.7,2.27254043]
[1757031472028,7.84,202.74,202.7,2.27254043]
[1757031472529,0.03355628,202.75,202.7,2.27254043]
[1757031472829,7.84,202.74,202.7,2.27254043]
[1757031473627,0.03355628,202.75,202.7,2.27254043]
[1757031473828,7.84,202.74,202.7,2.27254043]
[1757031474220,0.03355628,202.75,202.7,2.27254043]
[1757031474426,7.84,202.74,202.7,2.27254043]
[1757031474824,0.03355628,202.75,202.7,2.27254043]
[1757031475024,7.84,202.74,202.7,2.27254043]
[1757031475730,0.03355628,202.75,202.7,2.27254043]
[1757031475928,7.84,202.74,202.7,2.27254043]
[1757031476119,0.03355628,202.75,202.7,2.27254043]
[1757031476327,7.84,202.74,202.7,2.27254043]
[1757031476521,0.03355628,202.75,202.7,2.27254043]
[1757031476727,0.03355628,202.75,202.7,1.71254043]
[1757031476923,7.84,202.74,202.7,1.71254043]
[1757031477326,0.03355628,202.75,202.7,1.71254043]
[1757031477730,7.84,202.74,202.7,1.71254043]
[1757031478031,1.71254043,202.73,202.66,1.71254043]
[1757031478230,7.84,202.72,202.66,1.71254043]
[1757031479435,7.84,202.72,202.65,1.71254043]
[1757031479936,0.03538431,202.71,202.65,1.71254043]
[1757031480136,7.84,202.7,202.65,1.71254043]
[1757031480532,7.84,202.68,202.61,1.71254043]
[1757031480730,0.03538431,202.71,202.58,318.3]
[1757031480731,7.84,202.66,202.59,1.71254043]
[1757031481234,1.75027573,202.65,202.59,1.71254043]
[1757031481429,7.84,202.64,202.59,1.71254043]
[1757031481629,1.75027573,202.65,202.59,1.71254043]
[1757031481826,7.84,202.64,202.59,1.71254043]
[1757031482031,1.75027573,202.65,202.59,1.71254043]
[1757031483038,9.59027573,202.65,202.59,1.71254043]
[1757031483230,9.59027573,202.65,202.58,320.01254043]
[1757031483427,7.8777353,202.65,202.58,318.3]
[1757031485730,0.0377353,202.65,202.6,0.56]
[1757031485928,0.0377353,202.65,202.59,3.24048951]
[1757031486739,0.0377353,202.65,202.6,0.56]
[1757031486933,0.0377353,202.65,202.61,2.68048951]
[1757031487233,0.0377353,202.65,202.62,123.28]
[1757031487440,0.0377353,202.65,202.64,3.24048951]
[1757031490635,7.84,202.72,202.64,3.24048951]
[1757031490827,7.84,202.72,202.67,2.68048951]
[1757031491032,7.84,202.75,202.68,0.56]
[1757031491433,7.84,202.75,202.67,2.68048951]
[1757031491939,7.84,202.75,202.65,0.56]
[1757031492133,2.68048951,202.76,202.65,51.94]
[1757031492438,7.84,202.75,202.65,51.94]
[1757031492638,7.84,202.75,202.65,51.38]
[1757031492839,7.84,202.75,202.66,0.56]
[1757031493835,7.84,202.75,202.66,3.24048951]
[1757031494835,7.84,202.75,202.62,2.68048951]
[1757031495036,7.84,202.75,202.62,36.18048951]
[1757031495230,2.68048951,202.73,202.62,36.18048951]
[1757031495636,7.84,202.72,202.62,2.68048951]
[1757031498144,7.84,202.72,202.63,0.55]
[1757031498842,7.84,202.72,202.66,0.56]
[1757031503450,7.85,202.78,202.66,0.56]
[1757031503848,7.85,202.78,202.68,2.68048951]
[1757031505550,7.85,202.78,202.68,3.24048951]
[1757031506141,7.85,202.78,202.69,0.56]
[1757031510659,7.85,202.78,202.68,2.68048951]
[1757031510961,7.85,202.78,202.65,69.88]
[1757031511152,7.85,202.79,202.67,2.68048951]
[1757031513259,7.85,202.79,202.67,3.24048951]
[1757031513856,7.85,202.79,202.63,95.76]
[1757031513857,7.85,202.79,202.7,3.24048951]
[1757031514954,7.85,202.79,202.71,0.56]
[1757031515263,7.85,202.79,202.72,2.68048951]
[1757031520667,7.85,202.79,202.71,0.56]
[1757031520864,7.85,202.79,202.72,2.68048951]
[1757031522563,7.85,202.79,202.71,0.56]
[1757031522863,7.85,202.79,202.71,3.24048951]
[1757031523664,7.85,202.79,202.71,2.68048951]
[1757031523868,7.85,202.79,202.68,0.56]
[1757031524067,7.85,202.77,202.68,0.56]
[1757031524870,7.85,202.77,202.67,2.68048951]
[1757031525269,7.85,202.74,202.65,0.56]
[1757031525670,7.85,202.74,202.63,2.68048951]
[1757031527469,7.85,202.71,202.61,0.56]
[1757031527868,2.68048951,202.72,202.58,320.99048951]
[1757031528262,8.14,202.71,202.58,320.99048951]
[1757031528463,2.68048951,202.7,202.58,320.99048951]
[1757031528768,8.14,202.69,202.58,320.99048951]
[1757031529672,8.14,202.66,202.55,3.25048951]
[1757031531671,8.14,202.63,202.52,2.68048951]
[1757031531975,8.14,202.63,202.52,3.25048951]
[1757031533880,8.14,202.63,202.52,0.57]
[1757031536374,8.14,202.57,202.48,0.57]
[1757031543583,9.85692677,202.57,202.5,1.71692677]
[1757031545382,8.14,202.57,202.5,1.71692677]
[1757031545576,8.14,202.58,202.52,1.71692677]
[1757031545776,8.14,202.56,202.52,1.71692677]
[1757031545981,8.14,202.56,202.51,0.57]
[1757031545982,8.14,202.56,202.46,15.54]
[1757031546182,8.14,202.56,202.5,1.71692677]
[1757031546784,8.14,202.56,202.48,0.57]
[1757031546985,8.14,202.56,202.5,1.71692677]
[1757031548789,1.71692677,202.58,202.52,1.71692677]
[1757031549385,8.14,202.58,202.52,1.71692677]
[1757031549590,8.14,202.6,202.54,1.71692677]
[1757031549992,8.14,202.6,202.56,1.71692677]
[1757031550192,1.71692677,202.62,202.56,1.71692677]
[1757031550581,8.14,202.61,202.56,1.71692677]
[1757031550987,8.14,202.61,202.55,1.71692677]
[1757031554192,8.14,202.61,202.53,0.57]
[1757031554393,8.14,202.61,202.55,1.71692677]
[1757031555187,8.14,202.61,202.53,0.57]
[1757031555492,8.14,202.59,202.54,1.71692677]
[1757031555786,8.14,202.59,202.5,0.57]
[1757031555986,8.14,202.59,202.52,1.71692677]
[1757031556792,8.14,202.59,202.54,1.71692677]
[1757031557287,1.71692677,202.6,202.54,1.71692677]
[1757031557691,8.14,202.59,202.5,0.57]
[1757031557892,8.14,202.59,202.53,1.71692677]
[1757031558491,7.77,202.57,202.53,1.71692677]
[1757031558692,7.77,202.57,202.5,0.57]
[1757031558891,7.77,202.57,202.52,1.71692677]
[1757031559090,1.71692677,202.54,202.46,0.58]
[1757031559286,7.77,202.53,202.41,0.85960947]
[1757031559488,1.71692677,202.5,202.42,0.58]
[1757031559790,1.71692677,202.5,202.42,1.71692677]
[1757031559791,7.77,202.49,202.42,1.71692677]
[1757031559988,14.81,202.58,202.37,30.26]
[1757031560186,323.50869586,202.62,202.38,1.71692677]
[1757031560187,7.77,202.45,202.38,1.71692677]
[1757031561286,7.77,202.47,202.4,1.71692677]
[1757031563893,7.77,202.45,202.39,1.71692677]
[1757031569902,1.71692677,202.42,202.36,1.71692677]
[1757031570502,7.77,202.41,202.36,1.71692677]
[1757031570702,1.71692677,202.42,202.36,1.71692677]
[1757031571198,7.77,202.41,202.36,1.71692677]
[1757031571704,1.71692677,202.42,202.36,1.71692677]
[1757031572095,1.71692677,202.42,202.3,124.4]
[1757031572295,7.77,202.41,202.34,1.71692677]
[1757031572498,7.77,202.39,202.3,0.58]
[1757031572697,1.71692677,202.4,202.34,1.71692677]
[1757031573203,7.77,202.39,202.34,1.71692677]
[1757031573403,1.71692677,202.4,202.34,1.71692677]
[1757031573601,7.77,202.39,202.32,1.71692677]
[1757031574305,7.77,202.37,202.32,1.71692677]
[1757031574706,5.46869586,202.52,202.32,1.71692677]
[1757031574906,7.77,202.39,202.32,1.71692677]
[1757031575906,7.77,202.39,202.3,0.58]
[1757031576109,7.77,202.39,202.32,1.71692677]
[1757031576900,7.77,202.39,202.3,0.58]
[1757031577106,7.77,202.39,202.32,1.71692677]
[1757031577409,1.71692677,202.38,202.32,1.71692677]
[1757031577708,7.77,202.37,202.32,1.71692677]
[1757031577908,1.71692677,202.38,202.32,1.71692677]
[1757031578100,7.77,202.37,202.32,1.71692677]
[1757031578300,1.71692677,202.38,202.32,1.71692677]
[1757031578497,7.77,202.37,202.32,1.71692677]
[1757031578702,1.71692677,202.38,202.32,1.71692677]
[1757031578906,7.77,202.37,202.32,1.71692677]